bitfinex/quotes_SOLUSD_20230702
["timestamp","ask_amount","ask_price","bid_price","bid_amount"]
[1688320573617,21.969,19.254,19.241,10.83719922]
[1688320573823,21.969,19.254,19.242,55.0]
[1688320577619,21.969,19.254,19.242,65.83719922]
[1688320578025,21.969,19.254,19.243,55.0]
[1688320578535,21.969,19.254,19.242,55.0]
[1688320579352,22.45,19.25,19.228,21.998]
[1688320579639,22.45,19.25,19.222,56.652]
[1688320579640,181.819,19.245,19.222,56.652]
[1688320579951,20.0,19.244,19.224,22.002]
[1688320580123,20.0,19.244,19.22,424.67]
[1688320580124,181.916,19.234,19.215,56.672]
[1688320580324,181.916,19.234,19.218,121.3424]
[1688320580533,181.916,19.234,19.215,22.013]
[1688320580740,22.45,19.23,19.21,451.1566911]
[1688320580931,22.002,19.225,19.215,22.013]
[1688320581358,20.0,19.224,19.211,99.3334]
[1688320581641,22.008,19.221,19.211,99.3334]
[1688320581842,22.004,19.224,19.212,22.016]
[1688320582023,21.995,19.231,19.212,22.016]
[1688320582218,78.851,19.24,19.212,22.016]
[1688320582423,21.993,19.233,19.212,22.016]
[1688320582641,21.991,19.235,19.212,22.016]
[1688320583047,21.991,19.235,19.219,22.008]
[1688320583232,21.991,19.235,19.21,212.1352]
[1688320583425,21.991,19.235,19.2,22.58]
[1688320583426,112.36,19.23,19.2,22.58]
[1688320583643,112.17,19.22,19.191,103.533]
[1688320583938,182.102,19.215,19.19,402.3]
[1688320584448,22.014,19.215,19.202,22.028]
[1688320585040,56.633,19.229,19.207,3.0]
[1688320585250,56.633,19.229,19.2,148.687]
[1688320585251,21.998,19.229,19.213,78.693]
[1688320585542,21.998,19.229,19.203,22.027]
[1688320585543,181.964,19.229,19.203,22.027]
[1688320585844,181.964,19.229,19.194,402.3]
[1688320586043,181.964,19.229,19.2,22.6]
[1688320586258,78.631,19.229,19.208,22.021]
[1688320586745,21.998,19.229,19.208,78.716]
[1688320587040,45.2,19.25,19.22,22.6]
[1688320587226,45.2,19.25,19.233,21.992]
[1688320587227,21.98,19.244,19.233,21.992]
[1688320587428,103.198,19.255,19.238,21.986]
[1688320587429,21.976,19.248,19.238,21.986]
[1688320587621,56.548,19.258,19.243,21.981]
[1688320587834,56.548,19.258,19.233,103.311]
[1688320587835,21.969,19.254,19.23,22.43]
[1688320588038,78.568,19.245,19.231,55.0]
[1688320588241,21.98,19.245,19.231,76.994]
[1688320588833,21.98,19.245,19.231,55.0]
[1688320589025,22.6,19.24,19.22,22.007]
[1688320589220,22.6,19.24,19.204,20.0]
[1688320589221,22.005,19.223,19.206,56.7]
[1688320589446,22.005,19.223,19.196,103.507]
[1688320589741,11.31,19.22,19.198,22.033]
[1688320589934,182.111,19.214,19.186,13.83719922]
[1688320590245,78.694,19.214,19.195,22.036]
[1688320590759,11.31,19.21,19.183,56.768]
[1688320591048,22.029,19.202,19.188,22.044]
[1688320591658,22.023,19.207,19.188,22.044]
[1688320591867,154.0,19.234,19.188,22.044]
[1688320591868,22.012,19.217,19.195,3.0]
[1688320592154,48.24,19.24,19.212,78.698]
[1688320592155,159.921,19.235,19.212,78.698]
[1688320592350,3.0,19.25,19.21,11.31]
[1688320592351,11.27,19.25,19.22,89.974]
[1688320592548,21.986,19.24,19.232,21.993]
[1688320592750,21.986,19.24,19.223,103.364]
[1688320592751,103.197,19.255,19.236,21.99]
[1688320592960,14.35,19.26,19.236,21.99]
[1688320592961,159.712,19.26,19.236,21.99]
[1688320593135,21.97,19.254,19.237,55.0]
[1688320593343,12.03221,19.264,19.243,125.238]
[1688320593638,12.03221,19.264,19.25,78.545]
[1688320593837,33.99021,19.264,19.25,21.974]
[1688320594046,33.99021,19.264,19.24,11.26]
[1688320594047,21.958,19.264,19.251,55.0]
[1688320594457,56.498,19.275,19.251,55.0]
[1688320594756,33.97821,19.275,19.258,21.963]
[1688320595058,21.947,19.273,19.259,55.0]
[1688320595640,21.947,19.273,19.247,56.579]
[1688320595842,21.947,19.273,19.253,21.97]
[1688320596147,11.23,19.27,19.238,56.605]
[1688320596344,181.675,19.26,19.238,30.0]
[1688320596538,192.905,19.26,19.234,21.992]
[1688320596741,192.905,19.26,19.226,103.349]
[1688320597050,181.675,19.26,19.234,21.991]
[1688320597260,20.0,19.259,19.234,21.991]
[1688320597551,21.972,19.252,19.234,125.297]
[1688320597752,21.972,19.252,19.234,21.991]
[1688320597954,181.834,19.243,19.227,22.0]
[1688320598179,181.834,19.243,19.22,22.007]
[1688320598358,11.23,19.23,19.214,20.824643]
[1688320598556,78.649,19.225,19.214,20.824643]
[1688320598750,78.649,19.225,19.211,22.018]
[1688320599365,78.649,19.225,19.194,3.0]
[1688320599673,14.2,19.24,19.2,22.03]
[1688320599674,22.015,19.215,19.2,22.03]
[1688320599873,11.23,19.23,19.2,22.03]
[1688320599874,22.012,19.217,19.2,22.03]
[1688320600382,20.0,19.216,19.189,402.3]
[1688320600585,182.164,19.208,19.182,56.77]
[1688320600872,20.0,19.207,19.187,22.045]
[1688320601169,22.03,19.201,19.186,22.046]
[1688320601372,11.23,19.22,19.186,22.046]
[1688320601574,22.02,19.21,19.186,125.611]
[1688320601887,22.02,19.21,19.186,22.046]
[1688320601888,20.0,19.209,19.186,22.046]
[1688320602059,22.029,19.202,19.186,22.046]
[1688320602254,56.678,19.212,19.186,22.046]
[1688320602473,103.347,19.227,19.193,3.0]
[1688320602673,22.0,19.227,19.203,81.736]
[1688320602980,21.991,19.235,19.21,11.16]
[1688320603275,11.23,19.25,19.217,22.011]
[1688320603473,21.985,19.241,19.22,11.23]
[1688320603683,14.14,19.26,19.232,21.994]
[1688320603684,56.563,19.253,19.232,21.994]
[1688320603970,21.975,19.249,19.232,125.311]
[1688320604168,21.975,19.249,19.237,21.987]
[1688320604373,21.975,19.249,19.238,55.0]
[1688320604672,21.975,19.249,19.23,21.996]
[1688320604854,43.95,19.249,19.236,21.989]
[1688320605055,159.746,19.256,19.236,21.989]
[1688320605056,21.973,19.251,19.242,21.982]
[1688320605259,21.973,19.251,19.237,55.0]
[1688320605459,21.973,19.251,19.241,21.984]
[1688320605674,21.973,19.251,19.242,55.0]
[1688320605975,21.973,19.251,19.238,21.986]
[1688320606155,21.973,19.251,19.239,76.985]
[1688320608171,103.144,19.265,19.24,31.23]
[1688320608379,21.966,19.257,19.247,21.976]
[1688320608681,21.966,19.257,19.248,55.0]
[1688320609400,21.966,19.257,19.248,21.975]
[1688320609571,21.966,19.257,19.249,55.0]
[1688320609875,20.0,19.256,19.237,56.609]
[1688320610059,21.972,19.252,19.237,56.609]
[1688320610570,21.972,19.252,19.238,10.83719922]
[1688320611161,21.972,19.252,19.242,21.982]
[1688320612462,56.539,19.261,19.245,21.978]
[1688320612668,56.539,19.261,19.246,55.0]
[1688320613076,21.97,19.254,19.238,10.83719922]
[1688320613281,21.97,19.254,19.241,21.984]
[1688320614163,78.529,19.254,19.241,21.984]
[1688320614761,78.529,19.254,19.232,67.45719922]
[1688320614975,193.75847,19.254,19.233,20.0]
[1688320616164,193.75847,19.254,19.237,21.988]
[1688320616761,90.55947,19.254,19.237,78.597]
[1688320616971,78.529,19.254,19.237,78.597]
[1688320617465,78.529,19.254,19.237,21.988]
[1688320617775,12.03047,19.253,19.237,21.988]
[1688320617985,181.781,19.249,19.227,21.999]
[1688320618278,181.781,19.249,19.221,56.655]
[1688320618581,75.0,19.248,19.228,21.998]
[1688320618881,78.577,19.242,19.228,21.998]
[1688320619081,90.60747,19.242,19.228,21.998]
[1688320619781,90.60747,19.242,19.222,10.83719922]
[1688320620077,90.60747,19.242,19.221,22.007]
[1688320620078,181.919,19.234,19.221,22.007]
[1688320620287,78.613,19.234,19.221,22.007]
[1688320620661,78.613,19.234,19.219,22.008]
[1688320620867,12.03047,19.233,19.219,22.008]
[1688320621077,78.631,19.229,19.214,56.674]
[1688320621386,78.631,19.229,19.211,56.685]
[1688320621573,78.631,19.229,19.215,22.012]
[1688320621769,12.03047,19.233,19.215,22.012]
[1688320622272,21.998,19.229,19.215,22.012]
[1688320622460,55.0,19.228,19.195,402.3]
[1688320622660,182.041,19.221,19.201,30.0]
[1688320622861,78.689,19.215,19.205,22.025]
[1688320623277,22.014,19.215,19.205,22.025]
[1688320623880,55.0,19.228,19.205,22.025]
[1688320624070,22.014,19.215,19.205,22.025]
[1688320624777,22.014,19.215,19.198,56.705]
[1688320625084,22.014,19.215,19.204,22.026]
[1688320625263,22.014,19.215,19.192,10.83719922]
[1688320625461,22.014,19.215,19.193,20.0]
[1688320626283,22.014,19.215,19.194,22.037]
[1688320627673,3.0,19.209,19.186,31.00776306]
[1688320627886,182.227,19.202,19.183,22.05]
[1688320628271,22.036,19.196,19.183,22.05]
[1688320628467,22.041,19.192,19.183,22.05]
[1688320628673,182.315,19.192,19.174,56.776]
[1688320628875,182.315,19.192,19.16,11.16]
[1688320628876,20.0,19.191,19.16,11.16]
[1688320629083,22.051,19.183,19.162,30.0]
[1688320629478,22.049,19.185,19.162,30.0]
[1688320630071,22.049,19.185,19.162,60.0]
[1688320630295,22.049,19.185,19.163,20.0]
[1688320630474,22.049,19.185,19.164,30.0]
[1688320630787,22.048,19.185,19.17,56.805]
[1688320631773,22.048,19.185,19.163,20.0]
[1688320632081,22.048,19.185,19.15,11.16]
[1688320632082,20.0,19.184,19.15,11.16]
[1688320632396,78.847,19.177,19.159,30.0]
[1688320632570,78.847,19.177,19.15,11.16]
[1688320632771,22.065,19.171,19.159,22.077]
[1688320633195,22.06,19.175,19.16,31.23]
[1688320633382,22.055,19.179,19.167,182.551]
[1688320633580,22.055,19.179,19.167,78.384]
[1688320633884,22.055,19.179,19.167,21.568]
[1688320634279,22.055,19.179,19.165,22.07]
[1688320634477,22.055,19.179,19.166,55.0]
[1688320634690,22.055,19.179,19.166,77.069]
[1688320635184,22.051,19.182,19.17,10.71]
[1688320635387,22.05,19.184,19.173,22.061]
[1688320635586,56.725,19.198,19.174,20.0]
[1688320635887,78.77,19.195,19.181,22.052]
[1688320636094,78.77,19.195,19.177,22.057]
[1688320636300,78.77,19.195,19.174,10.83719922]
[1688320636477,78.77,19.195,19.174,22.06]
[1688320636791,78.77,19.195,19.16,11.21]
[1688320636792,190.15449603,19.195,19.161,56.833]
[1688320637094,11.23,19.2,19.161,56.833]
[1688320637095,182.383,19.185,19.166,22.07]
[1688320637589,182.383,19.185,19.166,32.90719922]
[1688320637779,182.383,19.185,19.167,10.83719922]
[1688320638096,182.383,19.185,19.171,22.064]
[1688320638795,182.383,19.185,19.171,32.90119922]
[1688320638976,56.746,19.191,19.171,32.90119922]
[1688320639182,22.042,19.19,19.172,30.83719922]
[1688320639380,22.042,19.19,19.177,22.057]
[1688320639578,103.53,19.193,19.177,22.057]
[1688320639579,56.726,19.198,19.178,55.0]
[1688320639784,22.039,19.193,19.183,22.05]
[1688320639979,125.566,19.193,19.178,10.83719922]
[1688320640192,125.566,19.193,19.179,22.054]
[1688320641192,125.566,19.193,19.179,32.89119922]
[1688320641193,22.039,19.193,19.179,32.89119922]
[1688320641497,22.039,19.193,19.183,22.049]
[1688320641676,22.039,19.193,19.184,55.0]
[1688320641882,22.039,19.193,19.18,55.0]
[1688320642083,22.039,19.193,19.179,77.055]
[1688320642912,22.039,19.194,19.18,20.0]
[1688320643198,22.038,19.194,19.186,22.046]
[1688320643701,22.036,19.196,19.187,55.0]
[1688320643903,56.715,19.202,19.189,22.043]
[1688320644096,32.91439845,19.22,19.19,55.0]
[1688320644097,56.703,19.206,19.19,55.0]
[1688320644299,22.029,19.202,19.194,22.037]
[1688320644491,22.029,19.202,19.195,55.0]
[1688320644806,3.0,19.229,19.197,22.034]
[1688320644998,182.055,19.22,19.198,55.0]
[1688320645382,7.82216728,19.219,19.198,55.0]
[1688320645683,182.118,19.213,19.198,77.033]
[1688320645880,182.118,19.213,19.192,10.83719922]
[1688320646082,189.94016728,19.213,19.192,22.039]
[1688320646293,7.82216728,19.212,19.192,22.039]
[1688320646501,20.0,19.211,19.192,22.039]
[1688320646706,182.189,19.206,19.192,22.039]
[1688320646928,20.0,19.205,19.192,22.039]
[1688320647200,78.744,19.202,19.192,22.039]
[1688320647403,78.744,19.202,19.193,55.0]
[1688320647595,78.744,19.202,19.193,77.038]
[1688320647793,78.744,19.202,19.186,97.5019]
[1688320648007,78.744,19.202,19.189,22.042]
[1688320648999,22.029,19.202,19.189,22.042]
[1688320649193,22.029,19.202,19.189,32.87919922]
[1688320649503,22.029,19.202,19.19,10.83719922]
[1688320649803,22.029,19.202,19.193,22.038]
[1688320649997,22.029,19.202,19.194,77.037]
[1688320650197,22.029,19.202,19.194,55.0]
[1688320650693,22.029,19.202,19.194,77.038]
[1688320652492,56.692,19.209,19.194,87.87519922]
[1688320652709,56.692,19.209,19.195,10.83719922]
[1688320653001,22.026,19.205,19.199,22.032]
[1688320653206,22.026,19.205,19.2,55.0]
[1688320653401,22.026,19.205,19.196,55.0]
[1688320654199,125.488,19.205,19.193,22.038]
[1688320654901,125.488,19.205,19.188,10.83719922]
[1688320655212,125.488,19.205,19.189,22.042]
[1688320655792,125.488,19.205,19.189,32.87919922]
[1688320655993,22.026,19.205,19.19,65.83719922]
[1688320656299,22.026,19.205,19.194,182.291]
[1688320656496,22.026,19.205,19.198,22.033]
[1688320656698,22.026,19.205,19.199,55.0]
[1688320657102,22.026,19.205,19.189,56.748]
[1688320657290,3.0,19.199,19.16,11.16]
[1688320657493,182.33,19.191,19.168,30.0]
[1688320657692,182.33,19.191,19.167,92.8693]
[1688320658002,20.0,19.19,19.167,114.9383]
[1688320658195,182.398,19.184,19.167,22.069]
[1688320661591,182.398,19.184,19.168,55.0]
[1688320662112,182.398,19.184,19.164,56.822]
[1688320662297,182.398,19.184,19.168,125.729]
[1688320662298,78.818,19.184,19.168,125.729]
[1688320662498,22.05,19.184,19.168,125.729]
[1688320662717,7.82216728,19.194,19.168,125.729]
[1688320662897,56.747,19.191,19.168,125.729]
[1688320663215,20.0,19.19,19.169,90.303]
[1688320663509,22.043,19.19,19.175,182.473]
[1688320663712,22.043,19.19,19.176,55.0]
[1688320663915,22.043,19.19,19.18,22.053]
[1688320664092,22.043,19.19,19.181,55.0]
[1688320664297,22.043,19.19,19.181,77.052]
[1688320664510,22.043,19.19,19.181,55.0]
[1688320664715,20.0,19.189,19.181,55.0]
[1688320665016,182.365,19.187,19.181,55.0]
[1688320665204,20.0,19.186,19.181,55.0]
[1688320665405,22.049,19.185,19.181,55.0]
[1688320665612,22.049,19.185,19.179,22.055]
[1688320665613,22.049,19.185,19.18,55.0]
[1688320665798,22.049,19.185,19.18,77.053]
[1688320666001,56.75,19.19,19.18,77.053]
[1688320667098,22.046,19.187,19.18,77.053]
[1688320668005,22.046,19.187,19.18,55.0]
[1688320668213,22.046,19.187,19.17,67.985]
[1688320668516,22.046,19.187,19.176,22.058]
[1688320669599,22.046,19.187,19.177,55.0]
[1688320669800,22.046,19.187,19.177,77.056]
[1688320670005,20.0,19.186,19.177,77.056]
[1688320670212,55.0,19.195,19.177,77.056]
[1688320670414,56.746,19.191,19.177,77.056]
[1688320670715,22.043,19.19,19.177,77.056]
[1688320672018,22.043,19.19,19.177,22.056]
[1688320674498,22.043,19.19,19.15,11.16]
[1688320674703,22.043,19.19,19.157,133.719]
[1688320674704,182.433,19.18,19.157,133.719]
[1688320675003,182.433,19.18,19.157,30.0]
[1688320675004,20.0,19.179,19.157,30.0]
[1688320675206,182.5,19.173,19.157,22.08]
[1688320676219,182.5,19.173,19.152,56.855]
[1688320676407,182.594,19.163,19.142,22.097]
[1688320676599,182.594,19.163,19.141,90.333]
[1688320676806,182.659,19.156,19.142,22.097]
[1688320677007,78.95,19.152,19.142,22.097]
[1688320677211,78.95,19.152,19.12,11.22]
[1688320677423,78.95,19.152,19.139,22.1]
[1688320678118,78.95,19.152,19.137,22.103]
[1688320678323,78.95,19.152,19.133,90.333]
[1688320678508,3.0,19.159,19.133,90.333]
[1688320678509,182.755,19.146,19.133,90.333]
[1688320679120,20.0,19.145,19.133,90.333]
[1688320679304,182.796,19.142,19.128,22.113]
[1688320679621,182.796,19.142,19.11,11.21]
[1688320679622,22.098,19.142,19.129,22.112]
[1688320679807,103.76,19.15,19.129,20.612]
[1688320680003,22.096,19.144,19.129,20.612]
[1688320680203,22.098,19.142,19.129,20.612]
[1688320680411,56.871,19.149,19.129,20.612]
[1688320680615,22.094,19.146,19.129,20.612]
[1688320681011,22.094,19.146,19.13,11.18]
[1688320681321,22.094,19.146,19.134,22.106]
[1688320682025,22.094,19.146,19.135,55.0]
[1688320682324,22.094,19.146,19.138,22.102]
[1688320682512,22.091,19.148,19.141,22.098]
[1688320682714,22.091,19.148,19.142,55.0]
[1688320682900,22.091,19.148,19.142,77.097]
[1688320684008,22.091,19.148,19.142,22.097]
[1688320684209,56.844,19.158,19.142,22.097]
[1688320684406,22.083,19.155,19.147,22.092]
[1688320684607,22.083,19.155,19.15,22.088]
[1688320684807,22.079,19.159,19.152,22.086]
[1688320685128,22.08,19.158,19.153,55.0]
[1688320685312,22.08,19.158,19.148,65.83719922]
[1688320685512,22.08,19.158,19.148,87.92719922]
[1688320686205,56.817,19.167,19.148,87.92719922]
[1688320686404,22.075,19.162,19.148,87.92719922]
[1688320689329,22.075,19.162,19.148,87.42719922]
[1688320690627,22.073,19.164,19.15,11.16]
[1688320690926,103.648,19.171,19.155,22.082]
[1688320690927,22.071,19.166,19.155,22.082]
[1688320691326,22.071,19.166,19.156,65.83719922]
[1688320691530,22.071,19.166,19.159,22.078]
[1688320691824,22.071,19.166,19.16,65.83719922]
[1688320692008,56.805,19.171,19.161,22.075]
[1688320692325,22.069,19.168,19.162,55.0]
[1688320692630,56.796,19.174,19.163,22.072]
[1688320692813,22.065,19.171,19.164,55.0]
[1688320693013,22.065,19.171,19.162,55.0]
[1688320693610,22.065,19.171,19.162,77.073]
[1688320694027,56.785,19.178,19.162,144.74119922]
[1688320694229,22.064,19.171,19.163,10.83719922]
[1688320694417,56.787,19.177,19.167,22.068]
[1688320694620,22.061,19.174,19.168,55.0]
[1688320694934,103.585,19.183,19.168,77.067]
[1688320695129,78.82,19.183,19.168,87.90419922]
[1688320695427,78.82,19.183,19.168,55.0]
[1688320696424,20.0,19.182,19.168,55.0]
[1688320696627,182.448,19.178,19.168,55.0]
[1688320696827,20.0,19.177,19.168,77.068]
[1688320697024,22.06,19.175,19.168,77.068]
[1688320697324,22.06,19.175,19.168,55.0]
[1688320697533,22.06,19.175,19.168,22.068]
[1688320697726,22.06,19.175,19.169,55.0]
[1688320697931,22.058,19.176,19.17,22.065]
[1688320698119,22.058,19.177,19.171,55.0]
[1688320698431,103.56,19.187,19.172,22.062]
[1688320698621,22.051,19.183,19.173,55.0]
[1688320698815,22.051,19.183,19.174,22.06]
[1688320699135,22.051,19.183,19.175,55.0]
[1688320699625,22.051,19.183,19.168,55.0]
[1688320699832,3.0,19.189,19.162,93.0787]
[1688320699833,182.466,19.176,19.162,93.0787]
[1688320700731,182.466,19.176,19.155,10.83719922]
[1688320701129,182.466,19.176,19.158,22.079]
[1688320701636,182.466,19.176,19.16,22.076]
[1688320701818,182.466,19.176,19.163,22.073]
[1688320702019,182.466,19.176,19.164,55.0]
[1688320702330,182.466,19.176,19.164,77.072]
[1688320702518,182.466,19.176,19.164,55.0]
[1688320703015,182.466,19.176,19.154,118.4618]
[1688320703216,182.545,19.168,19.151,22.086]
[1688320703421,20.0,19.167,19.151,22.086]
[1688320703727,78.904,19.163,19.151,32.92319922]
[1688320703925,78.904,19.163,19.152,10.83719922]
[1688320704127,22.074,19.163,19.155,22.082]
[1688320704635,103.648,19.171,19.156,10.83719922]
[1688320704822,22.067,19.169,19.16,22.076]
[1688320705023,22.067,19.169,19.161,55.0]
[1688320705233,22.067,19.169,19.163,22.073]
[1688320705417,22.064,19.172,19.164,55.0]
[1688320705617,103.61,19.178,19.164,55.0]
[1688320705618,22.062,19.173,19.166,22.069]
[1688320705837,56.784,19.178,19.167,55.0]
[1688320706021,22.06,19.175,19.17,22.065]
[1688320706233,22.06,19.175,19.171,55.0]
[1688320706534,22.06,19.175,19.171,77.063]
[1688320706920,22.058,19.177,19.171,77.063]
[1688320707237,22.057,19.178,19.171,77.063]
[1688320707630,22.057,19.178,19.171,87.90019922]
[1688320707936,7.89960497,19.198,19.171,87.90019922]
[1688320707937,56.752,19.189,19.171,87.90019922]
[1688320708128,20.0,19.188,19.171,87.90019922]
[1688320708533,22.05,19.183,19.171,87.90019922]
[1688320709427,56.752,19.189,19.171,87.90019922]
[1688320709731,20.0,19.188,19.171,87.90019922]
[1688320709939,22.05,19.183,19.171,87.90019922]
[1688320710128,22.049,19.184,19.171,87.90019922]
[1688320710330,22.05,19.183,19.171,87.90019922]
[1688320711931,22.048,19.186,19.171,87.90019922]
[1688320712121,20.0,19.188,19.171,87.90019922]
[1688320712523,22.047,19.186,19.172,10.83719922]
[1688320712730,56.752,19.189,19.177,182.455]
[1688320712731,22.044,19.189,19.177,182.455]
[1688320712925,103.514,19.196,19.177,182.455]
[1688320713136,22.046,19.187,19.182,22.05]
[1688320713427,182.23,19.201,19.181,22.052]
[1688320713627,182.23,19.201,19.183,55.0]
[1688320713827,182.23,19.201,19.183,77.05]
[1688320716127,182.23,19.201,19.183,55.0]
[1688320716327,20.0,19.2,19.183,77.05]
[1688320716533,182.287,19.195,19.183,55.0]
[1688320716837,182.287,19.195,19.182,55.0]
[1688320717225,182.287,19.195,19.182,77.051]
[1688320717419,78.77,19.195,19.182,87.88819922]
[1688320717737,78.77,19.195,19.183,10.83719922]
[1688320717943,78.77,19.195,19.186,22.046]
[1688320718629,78.77,19.195,19.187,55.0]
[1688320718837,78.77,19.195,19.179,56.778]
[1688320719336,78.77,19.195,19.177,10.83719922]
[1688320719934,86.66960497,19.195,19.177,10.83719922]
[1688320720244,86.66960497,19.195,19.177,32.89319922]
[1688320720438,86.66960497,19.195,19.18,22.053]
[1688320720639,86.66960497,19.195,19.181,55.0]
[1688320720828,86.66960497,19.195,19.182,22.051]
[1688320721032,86.66960497,19.195,19.183,55.0]
[1688320721428,86.66960497,19.195,19.173,103.635]
[1688320721631,27.89960497,19.194,19.167,93.6877]
[1688320721831,78.807,19.186,19.17,103.648]
[1688320723046,78.807,19.186,19.167,93.6877]
[1688320723347,78.807,19.186,19.166,103.669]
[1688320723544,78.807,19.186,19.165,56.82]
[1688320723728,78.807,19.186,19.17,22.065]
[1688320724335,78.807,19.186,19.171,55.0]
[1688320724742,78.807,19.186,19.17,55.0]
[1688320724942,78.807,19.186,19.173,22.061]
[1688320725243,78.807,19.186,19.17,55.0]
[1688320725244,78.807,19.186,19.174,55.0]
[1688320725630,78.807,19.186,19.172,22.063]
[1688320726646,78.807,19.186,19.168,56.812]
[1688320726839,78.807,19.186,19.172,22.063]
[1688320727145,78.807,19.186,19.164,142.851]
[1688320727339,78.836,19.179,19.168,22.067]
[1688320727550,20.0,19.178,19.168,22.067]
[1688320727740,22.059,19.176,19.168,22.067]
[1688320728430,125.678,19.176,19.15,567.62]
[1688320728631,22.059,19.176,19.168,22.067]
[1688320729846,22.059,19.176,19.169,55.0]
[1688320730043,22.059,19.176,19.171,22.064]
[1688320730246,22.059,19.176,19.172,55.0]
[1688320731537,22.057,19.177,19.172,22.062]
[1688320731744,22.057,19.177,19.173,55.0]
[1688320732051,22.055,19.179,19.173,77.061]
[1688320732235,3.0,19.199,19.173,133.859]
[1688320732440,22.054,19.18,19.173,133.859]
[1688320733052,22.053,19.181,19.173,133.859]
[1688320733242,22.051,19.183,19.173,133.859]
[1688320733445,76.753,19.189,19.173,133.859]
[1688320733642,76.753,19.189,19.174,10.83719922]
[1688320733846,22.048,19.186,19.178,22.055]
[1688320734043,22.048,19.186,19.179,55.0]
[1688320734257,22.048,19.186,19.18,22.053]
[1688320734448,22.048,19.186,19.181,55.0]
[1688320736957,22.048,19.186,19.18,55.0]
[1688320737256,22.048,19.186,19.181,22.053]
[1688320737446,22.048,19.186,19.182,55.0]
[1688320737957,22.048,19.186,19.182,77.051]
[1688320741055,22.048,19.186,19.177,56.786]
[1688320741056,22.048,19.186,19.18,22.053]
[1688320741241,22.048,19.186,19.175,55.0]
[1688320741441,22.048,19.186,19.173,22.061]